bitfinex/quotes_BTCUSD_20250331
["timestamp","ask_amount","ask_price","bid_price","bid_amount"]
[1743451478319,0.012105,82609.0,82600.0,0.13470986]
[1743451478571,0.012104,82616.0,82605.0,0.012105]
[1743451478727,0.242099,82611.0,82606.0,0.36471586]
[1743451479355,0.242098,82612.0,82606.0,0.36471586]
[1743451479488,0.242095,82612.0,82607.0,0.24211]
[1743451479689,0.242104,82609.0,82608.0,0.12260386]
[1743451479889,0.242126,82602.0,82600.0,0.003]
[1743451480092,0.242127,82601.0,82600.0,0.006]
[1743451480291,0.242127,82601.0,82600.0,0.14612]
[1743451480497,0.254239,82599.0,82596.0,0.14012]
[1743451480705,0.254239,82599.0,82598.0,0.12260386]
[1743451480905,0.254234,82601.0,82598.0,0.12260386]
[1743451481560,0.254234,82601.0,82600.0,0.003]
[1743451481763,0.24213,82600.0,82598.0,0.12660386]
[1743451482130,0.24213,82600.0,82598.0,0.12960386]
[1743451482329,0.242133,82599.0,82598.0,0.12660386]
[1743451482958,0.254234,82601.0,82598.0,0.12260386]
[1743451483382,0.254234,82601.0,82598.0,0.12660386]
[1743451483588,0.254239,82599.0,82598.0,0.12660386]
[1743451483957,0.254239,82599.0,82598.0,0.004]
[1743451484365,0.242137,82598.0,82596.0,0.14012]
[1743451484567,0.242139,82597.0,82596.0,0.14012]
[1743451485168,0.242137,82598.0,82596.0,0.14012]
[1743451485651,0.242137,82598.0,82596.0,0.14412]
[1743451486445,0.242137,82598.0,82596.0,0.14912]
[1743451486994,0.242133,82600.0,82596.0,0.14912]
[1743451487198,0.242133,82600.0,82596.0,0.391261]
[1743451487421,0.242124,82603.0,82599.0,0.242131]
[1743451487648,0.012104,82613.0,82601.0,0.012106]
[1743451487851,0.242096,82612.0,82608.0,0.242107]
[1743451488044,0.012106,82603.0,82579.0,0.62864]
[1743451488257,0.012106,82603.0,82556.0,3.05274587]
[1743451488258,0.242133,82599.0,82596.0,0.26272386]
[1743451488457,0.254245,82597.0,82596.0,0.26672386]
[1743451488655,0.254249,82596.0,82581.0,0.25421226]
[1743451488853,0.204249,82596.0,82588.0,0.14012]
[1743451489397,0.216356,82596.0,82588.0,0.14012]
[1743451490076,0.216356,82596.0,82595.0,0.00522481]
[1743451491106,0.216356,82596.0,82595.0,0.01022481]
[1743451494905,0.216356,82596.0,82595.0,0.00522481]
[1743451495720,0.216356,82596.0,82595.0,0.00022481]
[1743451495941,0.217356,82596.0,82595.0,0.00022481]
[1743451496352,0.216356,82596.0,82595.0,0.00122481]
[1743451496553,0.216356,82596.0,82595.0,0.00222481]
[1743451497083,0.216356,82596.0,82595.0,0.00122481]
[1743451497384,0.216356,82596.0,82595.0,0.00222481]
[1743451497566,0.216356,82596.0,82595.0,0.00122481]
[1743451497950,0.216356,82596.0,82595.0,0.00222481]
[1743451501188,0.63895986,82596.0,82595.0,0.00222481]
[1743451501313,0.68865986,82596.0,82595.0,8.1e-07]
[1743451502303,0.68965986,82596.0,82595.0,8.1e-07]
[1743451502505,1.09955986,82596.0,82595.0,8.1e-07]
[1743451502749,0.254335,82568.0,82567.0,0.0001683]
[1743451503548,0.204335,82568.0,82567.0,0.0001683]
[1743451503754,0.216446,82568.0,82567.0,0.0001683]
[1743451504646,0.216446,82568.0,82567.0,0.0031683]
[1743451505072,0.216446,82568.0,82567.0,0.0001683]
[1743451505235,0.216446,82568.0,82567.0,0.0041683]
[1743451505434,0.216446,82568.0,82567.0,0.0061683]
[1743451505435,0.33904986,82568.0,82567.0,0.0061683]
[1743451505805,0.33904986,82568.0,82567.0,0.0041683]
[1743451505949,0.33904986,82568.0,82567.0,0.0001683]
[1743451506169,0.33904986,82568.0,82567.0,0.0011683]
[1743451506961,0.34004986,82568.0,82567.0,0.0011683]
[1743451507367,0.34004986,82568.0,82567.0,0.0001683]
[1743451508338,0.33904986,82568.0,82567.0,0.0001683]
[1743451510477,0.216446,82568.0,82567.0,0.0001683]
[1743451510694,0.01211,82571.0,82567.0,0.0001683]
[1743451510984,0.254335,82568.0,82567.0,0.0001683]
[1743451522264,0.22610388,82569.0,82567.0,0.0001683]
[1743451522811,0.254335,82568.0,82567.0,0.0001683]
[1743451524837,0.254335,82568.0,82567.0,0.0501683]
[1743451529180,0.254672,82568.0,82567.0,0.0501683]
[1743451529908,0.554672,82568.0,82567.0,0.0501683]
[1743451530956,0.312448,82568.0,82567.0,0.0501683]
[1743451531420,0.554672,82568.0,82567.0,0.0501683]
[1743451532740,0.67727586,82568.0,82567.0,0.0501683]
[1743451533042,0.67727586,82568.0,82567.0,3e-07]
[1743451533043,0.69624095,82568.0,82567.0,3e-07]
[1743451533358,0.69724095,82568.0,82567.0,3e-07]
[1743451533757,0.69624095,82568.0,82567.0,3e-07]
[1743451534126,0.69724095,82568.0,82567.0,3e-07]
[1743451536793,0.69624095,82568.0,82567.0,3e-07]
[1743451536970,0.69824095,82568.0,82567.0,3e-07]
[1743451537382,0.70024095,82568.0,82567.0,3e-07]
[1743451537594,1.10614095,82568.0,82567.0,3e-07]
[1743451537804,1.08917586,82568.0,82567.0,3e-07]
[1743451538004,1.09117586,82568.0,82567.0,3e-07]
[1743451541134,1.09117586,82568.0,82567.0,0.0001688]
[1743451542219,1.11014221,82568.0,82567.0,0.0001688]
[1743451544510,0.79769421,82568.0,82567.0,0.0001688]
[1743451544711,0.80980521,82568.0,82567.0,0.0001688]
[1743451546736,0.68720135,82568.0,82567.0,0.0001688]
[1743451547951,0.668235,82568.0,82567.0,0.0001688]
[1743451549245,0.258335,82568.0,82567.0,0.0001688]
[1743451551479,0.258335,82568.0,82567.0,0.0501688]
[1743451552389,0.27763722,82568.0,82567.0,0.0501688]
[1743451557902,0.258672,82568.0,82567.0,0.0501688]
[1743451558794,0.27067071,82568.0,82567.0,0.0501688]
[1743451562184,0.258672,82568.0,82567.0,0.0501688]
[1743451562302,0.27763723,82568.0,82567.0,0.0501688]
[1743451563527,0.07090263,82568.0,82567.0,0.0501688]
[1743451564132,0.08301363,82568.0,82567.0,0.0501688]
[1743451565139,0.20561749,82568.0,82567.0,0.0501688]
[1743451565856,0.20561749,82568.0,82567.0,0.0001688]
[1743451566886,0.61551749,82568.0,82567.0,0.0001688]
[1743451567964,0.59655226,82568.0,82567.0,0.0001688]
[1743451568378,0.60874905,82568.0,82567.0,0.0001688]
[1743451569192,0.25436,82560.0,82552.0,6e-07]
[1743451569394,0.254381,82553.0,82552.0,6e-07]
[1743451569601,0.254381,82553.0,82530.0,3.4e-07]
[1743451569602,0.242333,82531.0,82530.0,3.4e-07]
[1743451569802,0.92707286,82531.0,82530.0,3.4e-07]
[1743451570005,0.92707286,82531.0,82530.0,0.00046409]
[1743451571300,0.94804696,82531.0,82530.0,0.00046409]
[1743451572337,0.95004696,82531.0,82530.0,0.00046409]
[1743451577056,0.93107286,82531.0,82530.0,0.00046409]
[1743451577403,0.79095286,82531.0,82530.0,0.00046409]
[1743451577612,0.668349,82531.0,82530.0,0.08046409]
[1743451577789,0.68040514,82531.0,82530.0,0.08046409]
[1743451578616,0.27050514,82531.0,82530.0,0.08046409]
[1743451578818,0.258449,82531.0,82530.0,0.08046409]
[1743451579519,0.004,82531.0,82530.0,0.08046409]
[1743451579719,0.004,82531.0,82530.0,0.32280009]
[1743451579865,0.004,82531.0,82530.0,0.09612098]
[1743451580277,0.004,82531.0,82530.0,0.33845698]
[1743451581026,0.25447371,82540.0,82533.0,0.242325]
[1743451581199,0.242315,82537.0,82530.0,0.10012098]
[1743451581373,0.242315,82537.0,82534.0,0.01563592]
[1743451581600,0.242315,82537.0,82530.0,0.08446409]
[1743451581810,0.242315,82537.0,82535.0,0.01563067]
[1743451582167,0.242318,82536.0,82530.0,0.32279909]
[1743451582562,0.242315,82537.0,82531.0,0.242333]
[1743451582781,0.25443,82537.0,82531.0,0.242333]
[1743451583372,0.254433,82536.0,82530.0,0.32679909]
[1743451583599,0.242321,82535.0,82530.0,0.08446409]
[1743451583937,0.242324,82534.0,82530.0,0.08446409]
[1743451584151,0.254437,82535.0,82530.0,0.08046409]
[1743451584563,0.254437,82535.0,82530.0,0.08246409]
[1743451584765,0.254437,82535.0,82530.0,0.08446409]
[1743451584973,0.0003368,82531.0,82530.0,0.08246409]
[1743451585339,0.0003368,82531.0,82530.0,0.08546409]
[1743451585933,0.0003368,82531.0,82530.0,0.08246409]
[1743451586127,0.0003368,82531.0,82530.0,0.08046409]
[1743451587297,0.0003368,82531.0,82530.0,0.08446409]
[1743451587553,0.0003368,82531.0,82530.0,0.08746409]
[1743451590982,0.0003368,82531.0,82530.0,0.10312098]
[1743451592929,0.0003368,82531.0,82530.0,0.34545698]
[1743451593743,0.0003368,82531.0,82530.0,0.48017684]
[1743451593971,0.0003368,82531.0,82530.0,0.78017684]
[1743451594404,0.0003368,82531.0,82530.0,0.92029684]
[1743451600526,0.0003368,82531.0,82530.0,0.78017684]
[1743451600696,0.0003368,82531.0,82530.0,0.92025684]
[1743451602817,0.0003368,82531.0,82530.0,0.97025684]
[1743451609179,0.2547858,82531.0,82530.0,0.07312098]
[1743451609389,0.30691958,82531.0,82530.0,0.07312098]
[1743451609541,0.3146836,82531.0,82530.0,0.05746409]
[1743451609746,0.43728746,82531.0,82530.0,0.05746409]
[1743451609999,0.43728746,82531.0,82530.0,0.05346409]
[1743451610138,0.43721174,82531.0,82530.0,0.05346409]
[1743451610339,0.43821174,82531.0,82530.0,0.05346409]
[1743451610540,0.43821174,82531.0,82530.0,0.05046409]
[1743451610792,0.43921174,82531.0,82530.0,0.05046409]
[1743451610992,0.43821174,82531.0,82530.0,0.05046409]
[1743451611195,0.254458,82528.0,82527.0,6.9e-07]
[1743451611401,0.51714186,82528.0,82527.0,6.9e-07]
[1743451612198,0.53611834,82528.0,82527.0,6.9e-07]
[1743451612592,0.53711834,82528.0,82527.0,6.9e-07]
[1743451612820,0.4052642,82528.0,82527.0,6.9e-07]
[1743451613264,0.6607222,82528.0,82527.0,6.9e-07]
[1743451614402,0.9607222,82528.0,82527.0,6.9e-07]
[1743451616814,1.3706222,82528.0,82527.0,6.9e-07]
[1743451617887,1.35164572,82528.0,82527.0,6.9e-07]
[1743451620474,1.35064572,82528.0,82527.0,6.9e-07]
[1743451620701,1.34964572,82528.0,82527.0,6.9e-07]
[1743451620887,1.34964572,82528.0,82504.0,0.004]
[1743451620888,0.242409,82505.0,82504.0,0.004]
[1743451621095,0.254529,82505.0,82504.0,0.004]
[1743451622190,0.27397373,82505.0,82504.0,0.004]
[1743451623455,0.27497373,82505.0,82504.0,0.004]
[1743451624107,0.27697373,82505.0,82504.0,0.004]
[1743451624538,0.27397373,82505.0,82504.0,0.004]
[1743451624899,0.27597373,82505.0,82504.0,0.004]
[1743451625180,0.27497373,82505.0,82504.0,0.004]
[1743451625622,0.27597373,82505.0,82504.0,0.004]
[1743451626756,0.52118145,82505.0,82504.0,1e-06]
[1743451627527,0.39857759,82505.0,82504.0,1e-06]
[1743451628976,0.27597373,82505.0,82504.0,1e-06]
[1743451629678,0.25699361,82505.0,82504.0,1e-06]
[1743451632653,0.27597379,82505.0,82504.0,0.0001694]
[1743451633896,0.27597379,82505.0,82504.0,0.0828694]
[1743451634634,0.27597379,82505.0,82504.0,0.1328694]
[1743451637319,0.02144479,82505.0,82504.0,0.3752814]
[1743451637523,0.00246461,82505.0,82504.0,0.14894703]
[1743451638983,0.00246461,82505.0,82504.0,0.39135903]
[1743451639416,0.00246461,82505.0,82504.0,0.52608289]
[1743451640642,0.00146461,82505.0,82504.0,0.52608289]
[1743451641076,0.00046461,82505.0,82504.0,0.52608289]
[1743451641291,0.00046461,82505.0,82504.0,0.52708289]
[1743451641497,0.00046461,82505.0,82504.0,0.57658289]
[1743451641651,0.00046461,82505.0,82504.0,0.57558289]
[1743451641855,0.00146461,82505.0,82504.0,0.57658289]
[1743451642477,0.00246461,82505.0,82504.0,0.58158289]
[1743451642833,0.00146461,82505.0,82504.0,0.57658289]
[1743451643257,0.00246461,82505.0,82504.0,0.58158289]
[1743451644199,0.00280141,82505.0,82504.0,0.58158289]
[1743451644907,0.25733041,82505.0,82504.0,0.20444703]
[1743451645082,0.00280141,82505.0,82504.0,0.20444703]
[1743451645225,0.00280141,82505.0,82504.0,0.44685903]
[1743451645434,0.00280141,82505.0,82504.0,0.20444703]
[1743451645890,0.00280141,82505.0,82504.0,0.45897903]
[1743451646178,0.00180141,82505.0,82504.0,0.59112374]
[1743451646384,0.00080141,82505.0,82504.0,1.45020374]
[1743451646589,0.0003368,82509.0,82508.0,0.55452]
[1743451646832,0.00026108,82531.0,82530.0,0.254452]
[1743451647041,0.00026108,82531.0,82530.0,0.382252]
[1743451647214,0.00026108,82531.0,82530.0,0.52079709]
[1743451647818,0.00026108,82531.0,82530.0,0.53533794]
[1743451648023,0.00026108,82531.0,82530.0,0.53647753]
[1743451648767,0.00026108,82531.0,82530.0,0.95647753]
[1743451648922,0.00026108,82531.0,82530.0,0.98056435]
[1743451649110,0.00026108,82531.0,82530.0,0.97556435]
[1743451649311,0.00026108,82531.0,82530.0,0.98056435]
[1743451649515,0.39919809,82566.0,82550.0,0.012113]
[1743451649725,0.012112,82562.0,82555.0,0.242259]
[1743451649952,0.242257,82557.0,82556.0,0.01580492]
[1743451650240,0.242253,82558.0,82553.0,0.242268]
[1743451650450,0.242256,82557.0,82556.0,0.01580492]
[1743451650660,0.012112,82562.0,82556.0,0.01580492]
[1743451650661,0.01896781,82570.0,82561.0,0.012112]
[1743451650876,0.01896781,82570.0,82567.0,0.254338]
[1743451651076,0.242216,82571.0,82566.0,0.25434]
[1743451651340,0.01211,82575.0,82567.0,0.01574728]
[1743451651541,0.01211,82573.0,82566.0,0.242229]
[1743451651742,0.254322,82573.0,82567.0,0.01574728]
[1743451652124,0.24223,82567.0,82561.0,0.37695886]
[1743451652363,0.242231,82566.0,82561.0,0.37695886]
[1743451652557,0.002,82562.0,82561.0,0.37695886]
[1743451652915,0.242228,82567.0,82563.0,0.242238]
[1743451653119,0.012111,82567.0,82561.0,0.36484686]
[1743451653523,0.012111,82567.0,82551.0,0.318071]
[1743451653524,0.242262,82555.0,82551.0,0.0758]
[1743451653723,0.013111,82566.0,82559.0,0.242248]
[1743451653907,0.242242,82562.0,82559.0,0.12260386]
[1743451654245,0.242239,82563.0,82559.0,0.12260386]
[1743451654461,0.254346,82565.0,82559.0,0.36485386]
[1743451654695,0.242245,82562.0,82559.0,0.12260386]
[1743451654866,0.254358,82561.0,82559.0,0.12260386]
[1743451655043,0.012112,82560.0,82559.0,0.12260386]
[1743451655227,0.254358,82561.0,82559.0,0.12260386]
[1743451656051,0.012112,82560.0,82559.0,0.12260386]
[1743451656834,0.25436,82560.0,82559.0,0.12260386]
[1743451657034,0.242239,82563.0,82560.0,0.0754]
[1743451657293,0.242242,82562.0,82560.0,0.0754]
[1743451657491,0.0003366,82567.0,82560.0,0.317645]
[1743451657827,0.0003366,82567.0,82563.0,0.242237]
[1743451658011,0.0003366,82567.0,82564.0,0.012111]
[1743451658187,0.0003366,82567.0,82566.0,0.24223]
[1743451658537,0.0003366,82567.0,82566.0,0.12260386]
[1743451659072,0.0023366,82567.0,82566.0,0.67694486]
[1743451659274,0.0003366,82567.0,82566.0,0.84157253]
[1743451659454,0.000337,82568.0,82566.0,0.84157253]
[1743451659455,0.0003368,82588.0,82581.0,0.254293]
[1743451659660,0.00080198,82588.0,82587.0,0.254276]
[1743451660096,0.00080198,82588.0,82587.0,0.37687986]
[1743451660298,0.00080198,82588.0,82587.0,0.39142071]
[1743451660702,0.00080198,82588.0,82587.0,0.47282071]
[1743451660906,0.00080198,82588.0,82587.0,1.21290753]
[1743451661128,0.00080198,82588.0,82587.0,1.22519802]
[1743451661704,0.012104,82613.0,82587.0,1.22519802]
[1743451661705,0.012106,82600.0,82588.0,0.392708]
[1743451661969,0.00047623,82596.0,82595.0,0.01454085]
[1743451662247,0.00047623,82596.0,82595.0,0.14925171]
[1743451662583,0.00047623,82596.0,82595.0,0.15167282]
[1743451662783,0.00047623,82596.0,82595.0,0.45167282]
[1743451662983,0.00047623,82596.0,82595.0,0.44925171]
[1743451663188,0.00047623,82596.0,82595.0,0.53125171]
[1743451663877,0.00047623,82596.0,82595.0,0.53225171]
[1743451664627,0.00047623,82596.0,82595.0,0.58095171]
[1743451664777,0.00047623,82596.0,82595.0,0.82709671]
[1743451665181,0.00047623,82596.0,82595.0,0.82609671]
[1743451665561,0.00047623,82596.0,82595.0,0.83109671]
[1743451665768,0.000337,82614.0,82598.0,0.64898285]
[1743451665966,0.000337,82614.0,82598.0,1.22725844]
[1743451666354,0.000337,82614.0,82598.0,0.81125844]
[1743451667083,0.000337,82614.0,82598.0,0.81525844]
[1743451667934,0.000337,82614.0,82598.0,0.81825844]
[1743451670045,0.242094,82613.0,82598.0,0.81825844]
[1743451670504,0.254198,82613.0,82598.0,0.81825844]
[1743451670704,0.242095,82612.0,82598.0,0.81825844]
[1743451670936,0.242103,82610.0,82598.0,0.81825844]
[1743451671163,0.012105,82604.0,82598.0,0.70146159]
[1743451671376,0.012105,82604.0,82598.0,0.56158159]
[1743451671566,0.242122,82603.0,82598.0,0.94359759]
[1743451671968,0.242117,82605.0,82598.0,0.94359759]
[1743451672122,0.242122,82603.0,82598.0,0.93659759]
[1743451672323,0.242129,82601.0,82598.0,0.60215559]
[1743451672530,0.242129,82601.0,82598.0,0.85129159]
[1743451672728,0.254221,82605.0,82598.0,0.86339759]
[1743451672952,0.242121,82604.0,82598.0,0.85939759]
[1743451673359,0.242122,82603.0,82598.0,0.86339759]
[1743451673714,0.242122,82603.0,82598.0,0.86335759]
[1743451673910,0.242122,82603.0,82598.0,0.86035759]
[1743451674070,0.242122,82603.0,82598.0,0.86335759]
[1743451674769,0.254221,82605.0,82598.0,0.86335759]
[1743451675013,0.242116,82605.0,82598.0,0.86335759]
[1743451675405,0.012106,82599.0,82598.0,0.14518877]
[1743451675560,0.254239,82599.0,82598.0,0.14518877]
[1743451675756,0.012106,82602.0,82598.0,0.02258491]
[1743451675955,0.242133,82600.0,82598.0,0.02258491]
[1743451676176,0.254239,82599.0,82598.0,0.01858491]
[1743451676845,0.254239,82599.0,82587.0,0.13984]
[1743451676846,0.254273,82588.0,82587.0,0.43984]
[1743451677070,0.254273,82588.0,82587.0,0.00013943]
[1743451677275,0.254273,82588.0,82587.0,0.01578194]
[1743451677422,0.254273,82588.0,82587.0,0.00013943]
[1743451677624,0.204273,82588.0,82587.0,0.00013943]
[1743451677790,0.17292121,82589.0,82587.0,0.00013943]
[1743451677993,0.254273,82588.0,82587.0,0.00013943]
[1743451678411,0.254273,82588.0,82587.0,0.00213943]
[1743451678754,0.254273,82588.0,82587.0,0.00113943]
[1743451678897,0.254273,82588.0,82587.0,0.00013943]
[1743451680492,0.012108,82588.0,82587.0,0.00047603]
[1743451680669,0.254273,82588.0,82587.0,0.00047603]
[1743451680808,0.2732347,82588.0,82587.0,0.00047603]
[1743451688291,0.0065217,82588.0,82587.0,0.00047603]
[1743451688497,0.012107,82596.0,82587.0,0.25475203]
[1743451688654,0.254255,82594.0,82589.0,0.242162]
[1743451688871,0.254255,82594.0,82588.0,0.242165]
[1743451689072,0.242151,82593.0,82590.0,0.0156268]
[1743451689339,0.242151,82593.0,82589.0,0.01563204]
[1743451689545,0.254261,82592.0,82591.0,0.01562157]
[1743451689761,0.254264,82591.0,82590.0,0.0156268]
[1743451689907,0.254264,82591.0,82587.0,0.00047603]
[1743451689908,0.242163,82589.0,82587.0,0.00047603]
[1743451690167,0.242165,82588.0,82587.0,0.00047603]
[1743451690355,0.254273,82588.0,82587.0,0.00047603]
[1743451692373,0.2544413,82588.0,82587.0,0.00047603]
[1743451694171,0.2564413,82588.0,82587.0,0.00047603]
[1743451694370,0.2544413,82588.0,82587.0,0.05047603]
[1743451694795,0.22526691,82589.0,82587.0,0.05047603]
[1743451694950,0.242165,82588.0,82587.0,0.05047603]
[1743451695177,0.27323375,82588.0,82587.0,0.05047603]
[1743451697831,0.254273,82588.0,82587.0,0.05047603]
[1743451704709,0.2544413,82588.0,82587.0,0.05047603]
[1743451705597,0.0001683,82588.0,82587.0,0.05047603]
[1743451705798,0.0001683,82588.0,82587.0,0.06611854]
[1743451707220,0.0001683,82588.0,82587.0,0.8707304]
[1743451707409,0.0001683,82588.0,82587.0,0.97517925]
[1743451708007,0.0001683,82588.0,82587.0,0.98426914]
[1743451708458,0.0001683,82588.0,82587.0,0.98726914]
[1743451709845,0.0001683,82588.0,82587.0,0.98926914]
[1743451710967,0.0001683,82588.0,82587.0,0.98017925]
[1743451711843,0.0001683,82588.0,82587.0,1.02637925]
[1743451712286,0.0001683,82588.0,82587.0,1.03526396]
[1743451712495,0.0001683,82588.0,82587.0,1.03226396]
[1743451712914,0.0001683,82588.0,82587.0,1.03626396]
[1743451713067,0.0001683,82588.0,82587.0,0.89642396]
[1743451713273,0.0001683,82588.0,82587.0,1.03622396]
[1743451713471,0.0001683,82588.0,82587.0,1.04222396]
[1743451713871,0.0001683,82588.0,82587.0,1.03622396]
[1743451714097,0.0001683,82588.0,82587.0,1.04222396]
[1743451714476,0.0001683,82588.0,82587.0,1.03622396]
[1743451714896,0.0001683,82588.0,82587.0,1.04222396]
[1743451719027,3e-07,82588.0,82587.0,1.45822396]
[1743451719233,3e-07,82588.0,82587.0,1.95822396]
[1743451719623,0.000337,82614.0,82598.0,0.554242]
[1743451719744,0.000337,82614.0,82598.0,0.85619842]
[1743451721433,3e-07,82599.0,82598.0,0.85619842]
[1743451721635,3e-07,82599.0,82598.0,0.86219842]
[1743451721880,3e-07,82599.0,82598.0,1.36219842]
[1743451722101,0.000337,82614.0,82613.0,0.679296]
[1743451722353,0.000337,82614.0,82613.0,0.98028753]
[1743451722610,0.000337,82614.0,82613.0,0.9933339]
[1743451723110,1e-06,82618.0,82617.0,0.554184]
[1743451723319,1e-06,82618.0,82617.0,0.76762871]
[1743451723320,4.751e-05,82618.0,82617.0,0.76762871]
[1743451723617,4.751e-05,82618.0,82617.0,0.78065414]
[1743451723825,5.1e-07,82618.0,82617.0,0.78065414]
[1743451723977,0.0001683,82627.0,82626.0,0.554156]
[1743451724178,0.0003368,82641.0,82635.0,0.65146985]
[1743451724412,6e-07,82636.0,82635.0,0.95085178]
[1743451725578,6e-07,82636.0,82635.0,1.00075178]
[1743451725775,6e-07,82636.0,82635.0,1.00575178]
[1743451726024,6e-07,82636.0,82635.0,1.01175178]
[1743451726689,0.0003368,82641.0,82640.0,0.56865385]
[1743451726916,6e-07,82642.0,82641.0,0.64675085]
[1743451727123,0.004,82659.0,82658.0,0.56859885]
[1743451727349,0.00413955,82659.0,82658.0,0.8678205]
[1743451727759,0.0003368,82664.0,82663.0,0.56858385]
[1743451728031,0.0002367,82671.0,82670.0,0.56856185]
[1743451728217,5e-07,82682.0,82679.0,0.3]
[1743451728388,5e-07,82682.0,82681.0,0.73683171]
[1743451728607,5e-07,82689.0,82688.0,0.56850685]
[1743451728816,0.00046548,82689.0,82688.0,0.74014229]
[1743451729806,4.8e-07,82689.0,82688.0,0.74014229]
[1743451730039,4.8e-07,82689.0,82688.0,0.74514229]
[1743451730738,4.8e-07,82689.0,82688.0,0.82244229]
[1743451730947,4.8e-07,82689.0,82688.0,1.23844229]
[1743451731157,4.8e-07,82689.0,82688.0,1.37812229]
[1743451731366,4.8e-07,82689.0,82688.0,1.38212229]
[1743451731613,4.8e-07,82689.0,82688.0,1.37312229]
[1743451732014,4.8e-07,82689.0,82688.0,1.38512229]
[1743451733480,4.8e-07,82689.0,82688.0,1.39430885]
[1743451733688,4.8e-07,82689.0,82688.0,1.25462885]
[1743451733909,4.8e-07,82689.0,82688.0,1.39426885]
[1743451735489,4.8e-07,82689.0,82688.0,1.41850465]
[1743451736350,4.8e-07,82689.0,82688.0,1.26657408]
[1743451736554,4.8e-07,82689.0,82688.0,1.40621408]
[1743451736768,4.8e-07,82689.0,82688.0,1.26657408]
[1743451736975,4.8e-07,82689.0,82688.0,0.99017408]
[1743451738753,0.0465,82715.0,82714.0,0.241797]
[1743451738973,0.00013949,82715.0,82714.0,0.2543154]
[1743451739182,0.00013949,82715.0,82714.0,0.0125184]
[1743451739400,0.00013949,82715.0,82712.0,0.253891]
[1743451739401,0.00013949,82715.0,82709.0,0.253898]
[1743451739599,0.012089,82713.0,82710.0,0.01253929]
[1743451739931,0.241809,82710.0,82708.0,0.3]
[1743451740325,0.01209,82709.0,82708.0,0.3]
[1743451740527,0.012091,82706.0,82695.0,0.012092]
[1743451740735,0.241825,82705.0,82701.0,0.3]
[1743451740891,0.241827,82704.0,82701.0,0.3]
[1743451741101,0.241827,82704.0,82702.0,0.01258106]
[1743451741310,0.241823,82707.0,82704.0,0.3]
[1743451741523,0.24182,82706.0,82703.0,0.3]
[1743451741729,0.24182,82706.0,82705.0,0.0125654]
[1743451741952,0.241815,82708.0,82704.0,0.01257062]
[1743451742110,0.241813,82709.0,82705.0,0.0125654]
[1743451742456,0.253903,82709.0,82705.0,0.0125654]
[1743451743030,0.241817,82707.0,82705.0,0.0125654]
[1743451743485,0.241818,82707.0,82705.0,0.0135654]
[1743451743682,0.253903,82709.0,82705.0,0.001]
[1743451743840,0.241813,82709.0,82706.0,0.01256017]
[1743451744044,0.241815,82708.0,82706.0,0.01256017]
[1743451744245,0.241812,82709.0,82706.0,0.01256017]
[1743451744659,0.241814,82708.0,82706.0,0.01256017]
[1743451745083,0.241815,82708.0,82706.0,0.01256017]
[1743451745682,0.241817,82707.0,82702.0,0.3]
[1743451745893,0.241815,82708.0,82707.0,0.01255495]
[1743451746098,0.241815,82708.0,82704.0,0.241823]
[1743451746298,0.241815,82708.0,82707.0,0.01255495]
[1743451746526,0.241815,82708.0,82706.0,0.003]
[1743451746722,0.241815,82708.0,82707.0,0.01255495]
[1743451746939,0.01209,82709.0,82707.0,0.01255495]
[1743451747361,0.21161545,82708.0,82707.0,0.01255495]
[1743451747584,0.22370545,82708.0,82707.0,0.01255495]
[1743451747989,0.25392,82703.0,82702.0,0.002]
[1743451748201,0.241848,82697.0,82694.0,0.43956]
[1743451748404,0.24185,82696.0,82694.0,0.43956]
[1743451748610,0.24185,82696.0,82695.0,0.01261762]
[1743451748812,0.253942,82696.0,82695.0,0.01261762]
[1743451749586,0.253944,82695.0,82694.0,0.009]
[1743451749791,0.253944,82695.0,82694.0,0.005]
[1743451750391,0.241852,82695.0,82694.0,0.005]
[1743451750593,0.241855,82694.0,82693.0,0.3]
[1743451751022,0.253941,82696.0,82693.0,0.3]
[1743451751244,0.241849,82696.0,82693.0,0.3]
[1743451751425,0.012092,82695.0,82691.0,0.3]
[1743451751563,0.241853,82695.0,82694.0,0.006]
[1743451751985,0.253945,82695.0,82694.0,0.002]
[1743451752188,0.253945,82695.0,82693.0,0.001]
[1743451752189,0.241856,82694.0,82693.0,0.001]
[1743451752385,0.241856,82694.0,82693.0,0.003]
[1743451752588,0.241856,82694.0,82693.0,0.002]
[1743451753244,0.253942,82696.0,82693.0,0.002]
[1743451753653,0.24185,82696.0,82693.0,0.002]
[1743451754059,0.24185,82696.0,82693.0,0.004]
[1743451754410,0.24185,82696.0,82693.0,0.302]
[1743451754641,0.24185,82696.0,82694.0,0.002]
[1743451754944,0.241852,82695.0,82694.0,0.002]
[1743451755187,0.241852,82695.0,82693.0,0.302]
[1743451755499,0.241852,82695.0,82693.0,0.002]
[1743451755638,0.241855,82694.0,82693.0,0.003]
[1743451755855,0.253947,82694.0,82693.0,0.002]
[1743451756085,0.241855,82694.0,82693.0,0.01462807]
[1743451756281,0.253947,82694.0,82693.0,0.01462807]
[1743451756757,0.241855,82694.0,82693.0,0.01262807]
[1743451756891,0.241855,82694.0,82693.0,0.01462807]
[1743451757096,0.253944,82695.0,82693.0,0.004]
[1743451757300,0.241854,82695.0,82693.0,0.01662807]
[1743451757506,0.241851,82696.0,82693.0,0.002]
[1743451757724,0.241851,82696.0,82694.0,0.01262285]
[1743451757988,0.241852,82695.0,82694.0,0.01262285]
[1743451758119,0.241851,82696.0,82693.0,0.002]
[1743451758369,0.253923,82702.0,82697.0,0.253933]
[1743451758594,0.241838,82700.0,82696.0,0.241847]
[1743451758767,0.241843,82699.0,82698.0,0.01260195]
[1743451758972,0.241843,82698.0,82697.0,0.01260718]
[1743451759175,0.241843,82698.0,82694.0,0.253947]
[1743451759374,0.241843,82698.0,82694.0,0.241855]
[1743451760001,0.241843,82698.0,82695.0,0.241851]
[1743451760582,0.012092,82695.0,82688.0,0.012093]
[1743451760781,0.012092,82695.0,82688.0,0.553965]
[1743451761013,0.241856,82694.0,82689.0,0.2422032]
[1743451761213,0.253944,82696.0,82691.0,0.241863]
[1743451761214,0.24185,82696.0,82691.0,0.241863]
[1743451761418,0.241857,82694.0,82691.0,0.241863]
[1743451761833,0.012092,82696.0,82691.0,0.253956]
[1743451762047,0.012092,82696.0,82690.0,0.012093]
[1743451762048,0.241856,82694.0,82690.0,0.25396]